Workbook

Sheet MENU
C2: CERTIFICADO DE INGRESOS Y RETENCIONES PARA PERSONAS NATURALES EMPLEADOS (Año gravable 2023) | N2: F -220
F4: Derechos reservados www.consultorcontable.com | L4: Actualizado año 2023. Wiliam Dussán Salazar
B5: Instrucciones:
B7: 1- Esta plantilla está diseñada para emitir certificados de ingresos y retenciones Formato 220 por el año gravable 2023 por parte del empledor
B8: 2- Diligecia los datos del empleador en la parte inferior de este anexo
B9: 3- Ingrese al botón "datos del empleado" de acuerdo al botón que aparece en este menú en la parte superior.
B10: Digite los datos de los empleados, partiendo del número de cédula y demás datos de ingresos y descuentos
B11: 4- Cuando ya se tenga diligenciada toda la información del empleado o de todos los empleados, debe ingresar al boton "Certificado"
B12: En el cual deberá digitar el número de cédula del empleado al que se le quiera generar el certificado. Luego imprimir o guardar como PDF
B15: DATOS DEL EMPLEADOR (Diligencia los datos del empleador que va a emitir el certificado
B17: NIT | C17: 900222000 | D17: DV | E17: 3
B19: RAZON SOCIAL | C19: COMERCIALIZADORA DE PRUEBA SA | I19: LUGAR DONDE SE PRACTICÓ LA RETENCIÓN | N19: Bogotá
B20: NOMBRE1 | I20: CODIGO DEPARTMENTO | N20: 11
B21: NOMBRE2 | I21: CODIGO MUNICIPIO | N21: 001
B22: APELLIDO1 | I22: FECHA DE EMISIÓN DEL CERTIFICADO | N22: 2024-02-15
B23: APELLIDO2
B24: PAGADOR
N25: Versión 1.2
K26: Basado en Resolución 000022 del 20-02-2024 | N26: Actualizado 22-02-2024

Sheet Datos empleados
F1: DATOS DE LOS EMPLEADOS | L1: Versión para generar hasta 150 empleados
C2: Diligencie la información de los terceros a los cuales le va a emitir el certificado, puede adicionar primero todos los datos de todos los empleados para luego si proceder a generar los certificados. | T2: Cesantias | AB2: 14 | AK2: Dependiente
A3: Número de indentificacion | B3: Cargo (Información Opcional) | C3: Primer apellido | D3: Segundo apellido | E3: Primer nombre | F3: Segundo nombre | G3: Fecha inicial | H3: Fecha final | I3: 36. Pagos por salarios | J3: 37. Pagos realizados con bonos electrónicos o de papel de servicio, cheques, tarjetas, vales, etc: | K3: 38. Valor del exceso de los pagos por alimentación mayores a 41 UVT, art. 387-1 E.T. | L3: 39. Pagos por Honorarios | M3: 40. Pagos por servicios | N3: 41. Pagos por Comisiones | O3: 42. Pagos por Prestaciones sociales | P3: 43.Pagos por Víaticos | Q3: 44. Pagos por Gastos de representación | R3: 45. Pagos por Compensación por el trabajo asociado cooperativo | S3: 46. Otros pagos | T3: 47. Auxilio de Cesantías e intereses de cesantías efectivamente pagadas al empleado | U3: 48. Auxilio de cesantía reconocido a trabajadores del régimen tradicional del CST, contenido en el Capítulo VII, Título VIII Parte Primera | V3: 49. Auxilio de Cesantias consignadas al fondo de cesantias | W3: 50. Pensiones de jubilación, vejez o invalidez | X3: 51. Apoyos económicos educativos financiados con recursos públicos, no reembolsables o condonados | Y3: 53. Aportes obligatorios por salud a cargo del trabajador | Z3: 54. Aportes obligatorios a fondos de pensiones y solidaridad pensional a cargo del trabajador | AA3: 55. Cotizaciones voluntarias al régime de ahorro individual con solidaridad - RAIS | AB3: 56. Aportes voluntarios a fondos de pensiones | AC3: 57. Aportes a cuentas AFC | AD3: 58. Aportes a cuentas AVC | AE3: 59. Ingreso laboral promedio de los últimos seis meses anteriores (numeral 4 art. 206 E.T.) | AF3: 60. Valor de la retención en la fuente por ingresos laborales y de pensiones | AG3: NO APLICA | AK3: Tipo de documento | AL3: N. de documento | AM3: Apellidos y nombres | AN3: Parentesco
A4: Totales | I4: =SUM(I5:I5000) -> 1000 | J4: =SUM(J5:J5000) -> 2000 | K4: =SUM(K5:K5000) -> 3000 | L4: =SUM(L5:L5000) -> 4000 | M4: 5000 | N4: 6000 | O4: 7000 | P4: 8000 | Q4: 9000 | R4: 10000 | S4: 11000 | T4: =SUM(T5:T5000) -> 12000 | U4: =SUM(U5:U5000) -> 13000 | V4: =SUM(V5:V5000) -> 14000 | W4: 15000 | X4: 16000 | Y4: 100 | Z4: 200 | AA4: 300 | AB4: 400 | AC4: 500 | AD4: 600 | AE4: 700 | AF4: 800 | AG4: 0
A5: 7700000 | B5: EJEMPLO | C5: GOMEZ | D5: GIRALDO | E5: MARIA | F5: ANGELICA | G5: 2023-01-01 | H5: 2023-12-31 | I5: 1000 | J5: 2000 | K5: 3000 | L5: 4000 | M5: 5000 | N5: 6000 | O5: 7000 | P5: 8000 | Q5: 9000 | R5: 10000 | S5: 11000 | T5: 12000 | U5: 13000 | V5: 14000 | W5: 15000 | X5: 16000 | Y5: 100 | Z5: 200 | AA5: 300 | AB5: 400 | AC5: 500 | AD5: 600 | AE5: 700 | AF5: 800 | AH5: =+IF((I5>0),1,0) -> 1 | AK5: TI | AL5: 2625455555 | AM5: LINA MARIA SOLANO | AN5: HIJA
AH6: 0
AH7: 0
AH8: 0
AH9: 0
AH10: 0
AH11: 0
AH12: 0
AH13: 0
AH14: 0
AH15: 0
AH16: 0
AH17: 0
AH18: 0
AH19: 0
AH20: 0
AH21: 0
AH22: 0
AH23: 0
AH24: 0
AH25: 0
AH26: 0
AH27: 0
AH28: 0
AH29: 0
AH30: 0
AH31: 0
AH32: 0
AH33: 0
AH34: 0
AH35: 0
AH36: 0
AH37: 0
AH38: 0
AH39: 0
AH40: 0
AH41: 0
AH42: 0
AH43: 0
AH44: 0
AH45: 0
AH46: 0
AH47: 0
AH48: 0
AH49: 0
AH50: 0
AH51: 0
AH52: 0
AH53: 0
AH54: 0
AH55: 0
AH56: 0
AH57: 0
AH58: 0
AH59: 0
AH60: 0
AH61: 0
AH62: 0
AH63: 0
AH64: 0
AH65: 0
AH66: 0
AH67: 0
AH68: 0
AH69: =+IF((I69>0),1,0) -> 0
AH70: 0
AH71: 0
AH72: 0
AH73: 0
AH74: 0
AH75: 0
AH76: 0
AH77: 0
AH78: 0
AH79: 0
AH80: 0
AH81: 0
AH82: 0
AH83: 0
AH84: 0
AH85: 0
AH86: 0
AH87: 0
AH88: 0
AH89: 0
AH90: 0
AH91: 0
AH92: 0
AH93: 0
AH94: 0
AH95: 0
AH96: 0
AH97: 0
AH98: 0
AH99: 0
AH100: 0
AH101: 0
AH102: 0
AH103: 0
AH104: 0
AH105: 0
AH106: 0
AH107: 0
AH108: 0
AH109: 0
AH110: 0
AH111: 0
AH112: 0
AH113: 0
AH114: 0
AH115: 0
AH116: 0
AH117: 0
AH118: 0
AH119: 0
AH120: 0
AH121: 0
AH122: 0
AH123: 0
AH124: 0
AH125: 0
AH126: 0
AH127: 0
AH128: 0
AH129: 0
AH130: 0
AH131: 0
AH132: 0
AH133: =+IF((I133>0),1,0) -> 0
AH134: 0
AH135: 0
AH136: 0
AH137: 0
AH138: 0
AH139: 0
AH140: 0
AH141: 0
AH142: 0
AH143: 0
AH144: 0
AH145: 0
AH146: 0
AH147: 0
AH148: 0
AH149: 0
AH150: 0
AH151: 0
AH152: 0
AH153: 0
AH154: 0
AH155: 0
AH156: 0
AH157: 0
AH158: 0
AH159: 0
AH160: 0
AH161: 0
AH162: 0
AH163: 0
AH164: 0
AH165: 0
AH166: 0
AH167: 0
AH168: 0
AH169: 0
AH170: 0
AH171: 0
AH172: 0
AH173: 0
AH174: 0
AH175: 0
AH176: 0
AH177: 0
AH178: 0
AH179: 0
AH180: 0
AH181: 0
AH182: 0
AH183: 0
AH184: 0
AH185: 0
AH186: 0
AH187: 0
AH188: 0
AH189: 0
AH190: 0
AH191: 0
AH192: 0
AH193: 0
AH194: 0
AH195: 0
AH196: 0
AH197: =+IF((I197>0),1,0) -> 0
AH198: 0
AH199: 0
AH200: 0
... 2050 more rows

Sheet Cert ing y ret
J1: Certificado de Ingresos y Retenciones por Rentas de Trabajo y de Pensiones Año gravable 2023
AM2: La información de este certificado se alimenta en el anexo de datos empleados, diligencie inicialmente los datos de todos sus empleados, o del que requiera generar el certificado.
A5: Antes de diligenciar este formulario lea cuidadosamente las instrucciones | V5: 4. Número de formulario | AC5: 7700000 | AM5: <<<Digite el numero de cédula del empleado que quiera generar el certificado
AM7: Luego lo puede imprimir o guardar en PDF según la necesidad.
A8: Retenedor | B8: 5. Número de Identificación Tributaria (NIT): | N8: 6. DV. | Q8: 7. Primer Apellido | W8: 8. Segundo Apellido | AC8: 9. Primer Nombre | AH8: 10. Otros Nombres | AP8: 11. Registro civil de nacimiento.
AP9: 12. Tarjeta de identidad.
D10: =IF(MENU!C17="","",MENU!C17) -> 900222000 | O10: - | P10: =IF(MENU!E17="","",MENU!E17) -> 3 | Q10: =IF(MENU!C22="","",MENU!C22) ->  | W10: =IF(MENU!C23="","",MENU!C23) ->  | AC10: =IF(MENU!C20="","",MENU!C20) ->  | AH10: =IF(MENU!C21="","",MENU!C21) ->  | AP10: 13. Cédula de ciudadanía.
B11: 11. Razón Social | AP11: 21. Tarjeta de extranjería.
B12: =IF(MENU!C19="","",MENU!C19) -> COMERCIALIZADORA DE PRUEBA SA | AP12: 22. Cédula de extranjería.
A13: Empleado | B13: 24. Cód. Tipo | G13: 25. Número de documento de identificación | S13: 26. Primer apellido | X13: 27 Segundo apellido | AD13: 28. Primer Nombre | AI13: 29 Otros Nombres | AP13: 31. NIT.
B14: de documento | AP14: 41. Pasaporte.
C15: 13. Cédula de ciudadanía. | G15: =+AC5 -> 7700000 | S15: =+VLOOKUP((AC5),'Datos empleados'!A5:AG5000,3,0) -> GOMEZ | X15: =VLOOKUP((AC5),'Datos empleados'!A5:AG5000,4,0) -> GIRALDO | AD15: =+VLOOKUP((AC5),'Datos empleados'!A5:AG5000,5,0) -> MARIA | AI15: =VLOOKUP((AC5),'Datos empleados'!A5:AG5000,6,0) -> ANGELICA | AP15: 42. Tipo de documento extranjero.
A17: Periodo de la Certificación | Q17: 32. Fecha de Expedición | X17: 33. Lugar donde se practicó la retención | AH17: 34 Cód. Dpto. | AJ17: 35. Cód. Ciudad/ Municipio
B18: 30. de: | E18: =+VLOOKUP((AC5),'Datos empleados'!A5:AG5000,7,0) -> 2023-01-01 | J18: 31. A: | L18: =+VLOOKUP((AC5),'Datos empleados'!A5:AG5000,8,0) -> 2023-12-31 | R18: =+MENU!N22 -> 2024-02-15 | X18: =+MENU!N19 -> Bogotá | AI18: =+MENU!N20 -> 11 | AJ18: =+MENU!N21 -> 001 | AP18: Hijo (a)
AP19: Padres
A20: Concepto de los Ingresos | AB20: Valor | AP20: Esposa (o)
A21: Pagos por salarios | AB21: 36 | AC21: =+VLOOKUP(($AC$5),'Datos empleados'!$A$5:$AG$5000,9,0) -> 1000 | AP21: Compañero (a)
A22: Pagos realizados con bonos electrónicos o de papel de servicio, cheques, tarjetas, vales, etc | AB22: =+AB21+1 -> 37 | AC22: =+VLOOKUP(($AC$5),'Datos empleados'!$A$5:$AG$5000,10,0) -> 2000
A23: Valor del exceso de los pagos por alimentación mayores a 41 UVT, art. 387-1 E.T. | AB23: =+AB22+1 -> 38 | AC23: =VLOOKUP(($AC$5),'Datos empleados'!$A$5:$AG$5000,11,0) -> 3000
A24: Pagos por honorarios | AB24: =+AB23+1 -> 39 | AC24: =+VLOOKUP(($AC$5),'Datos empleados'!$A$5:$AG$5000,12,0) -> 4000
A25: Pagos por servicios | AB25: =+AB24+1 -> 40 | AC25: =+VLOOKUP(($AC$5),'Datos empleados'!$A$5:$AG$5000,13,0) -> 5000
A26: Pagos por comisiones | AB26: 41 | AC26: =+VLOOKUP(($AC$5),'Datos empleados'!$A$5:$AG$5000,14,0) -> 6000
A27: Pagos por prestaciones sociales | AB27: 42 | AC27: =+VLOOKUP(($AC$5),'Datos empleados'!$A$5:$AG$5000,15,0) -> 7000
A28: Pagos por viáticos | AB28: 43 | AC28: =+VLOOKUP(($AC$5),'Datos empleados'!$A$5:$AG$5000,16,0) -> 8000
A29: Pagos por gastos de representación | AB29: 44 | AC29: =+VLOOKUP(($AC$5),'Datos empleados'!$A$5:$AG$5000,17,0) -> 9000
A30: Pagos por compensaciones por el trabajo asociado cooperativo | AB30: 45 | AC30: =+VLOOKUP(($AC$5),'Datos empleados'!$A$5:$AG$5000,18,0) -> 10000
A31: Otros pagos | AB31: 46 | AC31: =+VLOOKUP(($AC$5),'Datos empleados'!$A$5:$AG$5000,19,0) -> 11000
A32: Auxilio de cesantía e intereses efectivamente pagadas al empleado | AB32: 47 | AC32: =+VLOOKUP(($AC$5),'Datos empleados'!$A$5:$AG$5000,20,0) -> 12000
A33: Auxilio de cesantía reconocido a trabajadores del régimen tradicional del CST, contenido en el Capítulo VII, Título VIII Parte Primera | AB33: =+AB32+1 -> 48 | AC33: =VLOOKUP(($AC$5),'Datos empleados'!$A$5:$AG$5000,21,0) -> 13000
A34: Auxilio de cesantías consignado al fondo de cesantias | AB34: =+AB33+1 -> 49 | AC34: =+VLOOKUP(($AC$5),'Datos empleados'!$A$5:$AG$5000,22,0) -> 14000
A35: Pensiones de jubilación, vejez o invalidez | AB35: =+AB34+1 -> 50 | AC35: =+VLOOKUP(($AC$5),'Datos empleados'!$A$5:$AG$5000,23,0) -> 15000
A36: Apoyos económicos educativos financiados con recursos públicos, no reembolsables o condonados | AB36: =+AB35+1 -> 51 | AC36: =+VLOOKUP(($AC$5),'Datos empleados'!$A$5:$AG$5000,24,0) -> 16000
A37: Total de ingresos brutos (Sume 36 a 51) | AB37: =+AB36+1 -> 52 | AC37: =SUM(AC21:AL36) -> 136000
A38: Concepto de los aportes | AB38: Valor
A39: Aportes obligatorios por salud a cargo del trabajador | AB39: =+AB37+1 -> 53 | AC39: =VLOOKUP(($AC$5),'Datos empleados'!$A$5:$AG$5000,25,0) -> 100
A40: Aportes obligatorios a fondos de pensiones y solidaridad pensional a cargo del trabajador | AB40: =+AB39+1 -> 54 | AC40: =VLOOKUP(($AC$5),'Datos empleados'!$A$5:$AG$5000,26,0) -> 200
A41: Cotizaciones voluntarias al régimen de ahorro individual con solidaridad - RAIS | AB41: 55 | AC41: =VLOOKUP(($AC$5),'Datos empleados'!$A$5:$AG$5000,27,0) -> 300
A42: Aportes voluntarios a fondos de pensiones | AB42: 56 | AC42: =VLOOKUP(($AC$5),'Datos empleados'!$A$5:$AG$5000,28,0) -> 400
A43: Aportes a cuentas AFC | AB43: 57 | AC43: =VLOOKUP(($AC$5),'Datos empleados'!$A$5:$AG$5000,29,0) -> 500
A44: Aportes a cuentas AVC | AB44: 58 | AC44: =VLOOKUP(($AC$5),'Datos empleados'!$A$5:$AG$5000,30,0) -> 600
A45: Ingreso laboral promedio de los últimos seis meses anteriores (numeral 4 art. 206 E.T.) | AB45: 59 | AC45: =VLOOKUP(($AC$5),'Datos empleados'!$A$5:$AG$5000,31,0) -> 700
A46: Valor de la retención en la fuente por ingresos laborales y de pensiones | AB46: 60 | AC46: =VLOOKUP(($AC$5),'Datos empleados'!$A$5:$AG$5000,32,0) -> 800
A48: Nombre del pagador o agente retenedor
A49: =IF(MENU!C24="","",MENU!C24) -> 
A51: Datos a cargo del trabajador o pensionado | AM51: Desde el renglon 61 en adelante lo diligencia el empleado que no
A52: Concepto de otros ingresos | Y52: Valor recibido | AF52: Valor retenido | AM52: esté obligado a declarar. El empleador sólo diligencia la información hasta el renglon 60
A53: Arrendamientos | Y53: 61 | AF53: 68
A54: Honorarios, comisiones y servicios | Y54: 62 | AF54: 69
A55: Intereses y rendimientos financieros | Y55: 63 | AF55: 70
A56: Enajenación de activos fijos | Y56: 64 | AF56: 71
A57: Loterías, rifas, apuestas y similares | Y57: 65 | AF57: 72
A58: Otros | Y58: 66 | AF58: 73
A59: Totales: (Valor recibido: Sume casillas 61 a 66), (Valor retenido: Sume 68 a 73) | Y59: 67 | Z59: =SUM(Z53:AE58) -> 0 | AF59: 74 | AG59: =SUM(AG53:AL58) -> 0
A60: Total retenciones año gravable (Sume 60 + 74) | AF60: 75 | AG60: =+AC46+AG59 -> 800
A61: Ítem | B61: 76. Identificación de los bienes poseídos | AF61: 77. Valor Patrimonial
A62: 1
A63: 2
A64: 3
A65: 4
A66: 5
A67: 6
A68: 7
A69: 8
A70: Deudas vigentes a 31 de Diciembre | AF70: 78
A71: Identificación del dependiente económico de acuerdo al parágrafo 2 del artículo 387 del Estatuto Tributario
A72: 79. Tipo de documento | G72: 80. No. Documento | N72: 81. Apellidos y Nombres | AF72: 82. Parentesco
A73: =VLOOKUP(($AC$5),'Datos empleados'!$A$5:$AN$5000,37,0) -> TI | G73: =VLOOKUP(($AC$5),'Datos empleados'!$A$5:$AN$5000,38,0) -> 2625455555 | N73: =VLOOKUP(($AC$5),'Datos empleados'!$A$5:$AN$5000,39,0) -> LINA MARIA SOLANO | AF73: =VLOOKUP(($AC$5),'Datos empleados'!$A$5:$AN$5000,40,0) -> HIJA
A74: 2
A75: 3
A76: 4
AB77: Firma del trabajador o pensionado
A85: NOTA: este certificado sustituye para todos los efectos legales la declaración de Renta y Complementario para el trabajador o pensionado que cumpla con lo estabecido en el artículo 1.6.1.13.2.7. del Decreto 1625 de 2016 Único reglamentario en materia tributaria. Para aquellos trabajadores independientes contribuyentes del impuesto unificado deberán presentar la declaración anual consolidada del Régimen Simple de Tributación (SIMPLE).

Sheet Hoja libre

Sheet Hoja1

Sheet Hoja2

Sheet Hoja3
